bitfinex-derivatives/quotes_BTCF0:USTF0_20241025
["timestamp","ask_amount","ask_price","bid_price","bid_amount"]
[1729820893116,0.3608,67938.0,67935.0,0.14718258]
[1729820894026,0.3608,67938.0,67937.0,0.05013041]
[1729820894227,0.3608,67938.0,67937.0,0.10026082]
[1729820895036,0.12375041,67940.0,67937.0,0.10026082]
[1729820895333,0.48455041,67940.0,67939.0,0.0588039]
[1729820896325,0.53468082,67940.0,67939.0,0.0588039]
[1729820897337,0.53468082,67940.0,67938.0,0.0588039]
[1729820898933,0.48455041,67940.0,67938.0,0.1324249]
[1729820899440,0.12375041,67940.0,67938.0,0.1324249]
[1729820899644,0.12375041,67940.0,67939.0,0.0588039]
[1729820900729,0.12375041,67940.0,67939.0,0.09764544]
[1729820901140,0.12375041,67940.0,67939.0,0.18579794]
[1729820901536,0.12375041,67940.0,67939.0,0.09764544]
[1729820902434,0.05013041,67940.0,67939.0,0.09764544]
[1729820902733,0.41285041,67942.0,67940.0,0.073619]
[1729820902734,0.36272,67942.0,67940.0,0.073619]
[1729820902936,0.3608,67942.0,67941.0,0.27152526]
[1729820903140,0.3608,67950.0,67941.0,0.3143898]
[1729820903339,0.3608,67950.0,67949.0,0.10026082]
[1729820903530,0.3608,67950.0,67949.0,0.17371876]
[1729820903731,0.3608,67950.0,67949.0,0.24732876]
[1729820904042,0.073608,67951.0,67949.0,0.27113723]
[1729820904235,0.073608,67951.0,67950.0,0.09726641]
[1729820906138,0.073608,67951.0,67950.0,0.09702311]
[1729820907728,0.10879175,67951.0,67949.0,0.17387082]
[1729820907935,0.03518375,67950.0,67949.0,0.17387082]
[1729820909134,0.07605044,67950.0,67949.0,0.17387082]
[1729820910733,0.03518375,67950.0,67949.0,0.17387082]
[1729820910933,0.07609707,67950.0,67949.0,0.17387082]
[1729820911738,0.12270336,67950.0,67949.0,0.17387082]
[1729820912543,0.19631236,67950.0,67949.0,0.17387082]
[1729820912737,0.14970607,67950.0,67949.0,0.17387082]
[1729820913141,0.19638546,67950.0,67949.0,0.17387082]
[1729820915943,0.073609,67950.0,67949.0,0.38653492]
[1729820916947,0.073609,67950.0,67949.0,0.2862741]
[1729820917145,0.073609,67950.0,67949.0,0.38653492]
[1729820917939,0.073609,67950.0,67949.0,0.38620586]
[1729820918142,0.073609,67950.0,67949.0,0.31259586]
[1729820919544,0.073609,67950.0,67949.0,0.31253381]
[1729820922549,0.073609,67950.0,67949.0,0.31263035]
[1729820922946,0.10892417,67950.0,67949.0,0.10026082]
[1729820924356,0.14996333,67950.0,67949.0,0.10026082]
[1729820925049,0.14996333,67950.0,67949.0,0.17387082]
[1729820925050,0.03531517,67950.0,67949.0,0.17387082]
[1729820925350,0.03556492,67950.0,67949.0,0.10026082]
[1729820925545,0.073605,67954.0,67950.0,0.073609]
[1729820925743,0.03556924,67953.0,67950.0,0.073609]
[1729820925956,0.10917624,67952.0,67951.0,0.05013041]
[1729820926141,0.07361,67949.0,67948.0,0.05013041]
[1729820926347,0.10917924,67949.0,67948.0,0.05013041]
[1729820927241,0.10917924,67949.0,67948.0,0.10026082]
[1729820930141,0.10914311,67949.0,67948.0,0.10026082]
[1729820930949,0.10914311,67949.0,67948.0,0.31270499]
[1729820930950,0.07361,67949.0,67948.0,0.31270499]
[1729820931347,0.15193041,67957.0,67948.0,0.31270499]
[1729820931653,0.073604,67954.0,67953.0,0.18856016]
[1729820931854,0.073604,67954.0,67953.0,0.28547981]
[1729820932245,0.073604,67954.0,67953.0,0.19718047]
[1729820934854,0.073604,67954.0,67953.0,0.19744936]
[1729820936147,0.073604,67954.0,67953.0,0.38689791]
[1729820936356,0.073602,67957.0,67954.0,0.073604]
[1729820936556,0.073602,67957.0,67956.0,0.10026082]
[1729820936752,0.073602,67957.0,67956.0,0.31329191]
[1729820937356,0.12373241,67957.0,67956.0,0.21303109]
[1729820937661,0.073602,67957.0,67956.0,0.21303109]
[1729820937861,0.073602,67957.0,67956.0,0.09718854]
[1729820939459,0.073602,67957.0,67956.0,0.07362721]
[1729820939757,0.073606,67953.0,67952.0,0.07362721]
[1729820939961,0.05013041,67952.0,67951.0,0.07362721]
[1729820940154,0.073609,67950.0,67949.0,0.07362721]
[1729820940354,0.48453941,67950.0,67949.0,0.09746478]
[1729820940556,0.48453941,67950.0,67949.0,0.17109961]
[1729820941260,0.48453941,67950.0,67949.0,0.09746478]
[1729820942465,0.48453941,67950.0,67949.0,0.17106848]
[1729820943052,0.48453941,67950.0,67949.0,0.17101888]
[1729820943565,0.5001172,67950.0,67949.0,0.17101888]
[1729820945267,0.5001172,67950.0,67949.0,0.0736037]
[1729820945465,0.5001172,67950.0,67947.0,0.0736037]
[1729820945466,0.12374041,67949.0,67947.0,0.0736037]
[1729820945671,0.05013041,67948.0,67947.0,0.0736037]
[1729820945963,0.05013041,67947.0,67940.0,0.10026082]
[1729820946166,0.073619,67941.0,67940.0,0.10026082]
[1729820946474,0.073619,67941.0,67940.0,0.05013041]
[1729820946475,0.19518891,67941.0,67940.0,0.05013041]
[1729820946660,0.05013041,67940.0,67936.0,0.47685085]
[1729820946973,0.073623,67937.0,67936.0,0.11605085]
[1729820947167,0.11418268,67937.0,67936.0,0.11605085]
[1729820947470,0.14911639,67937.0,67936.0,0.11605085]
[1729820947876,0.14858687,67937.0,67936.0,0.11605085]
[1729820950264,0.19871728,67937.0,67936.0,0.01579003]
[1729820950462,0.07363,67930.0,67929.0,0.3608]
[1729820950663,0.07363,67930.0,67929.0,0.3765022]
[1729820950664,0.2085795,67930.0,67929.0,0.3765022]
[1729820950973,0.15844909,67930.0,67929.0,0.3765022]
[1729820951375,0.2085795,67930.0,67929.0,0.3765022]
[1729820952369,0.10831868,67930.0,67929.0,0.3765022]
[1729820953072,0.10026082,67933.0,67929.0,0.59062594]
[1729820953266,0.073628,67932.0,67931.0,0.10026082]
[1729820953471,0.073628,67932.0,67931.0,0.19809847]
[1729820957374,0.073628,67932.0,67931.0,0.1976244]
[1729820958183,0.073628,67932.0,67931.0,0.28574937]
[1729820959685,0.073628,67932.0,67931.0,0.18548855]
[1729820959881,0.073628,67932.0,67931.0,0.09736358]
[1729820960773,0.12375841,67932.0,67931.0,0.09736358]
[1729820960983,0.12375841,67932.0,67920.0,0.04406019]
[1729820960984,0.10026082,67931.0,67920.0,0.04406019]
[1729820961183,0.10026082,67931.0,67919.0,0.04406019]
[1729820961184,0.12377141,67920.0,67919.0,0.04406019]
[1729820961378,0.12377141,67920.0,67917.0,0.3608]
[1729820961379,0.05013041,67919.0,67917.0,0.3608]
[1729820961685,0.05013041,67919.0,67915.0,0.05]
[1729820961882,0.05013041,67916.0,67915.0,0.05]
[1729820962279,0.10026082,67916.0,67915.0,0.05]
[1729820962683,0.10026082,67916.0,67915.0,0.06578819]
[1729820962983,0.3608,67922.0,67915.0,0.06578819]
[1729820962984,0.05013041,67917.0,67915.0,0.1159186]
[1729820963176,0.12377541,67917.0,67915.0,0.16604901]
[1729820963981,0.12377541,67917.0,67916.0,0.04403049]
[1729820964877,0.12377541,67917.0,67915.0,0.16604901]
[1729820964878,0.073646,67916.0,67915.0,0.11604901]
[1729820966174,0.073646,67916.0,67915.0,0.0659186]
[1729820966380,0.17390682,67916.0,67915.0,0.01578819]
[1729820966579,0.12377641,67916.0,67915.0,0.10026082]
[1729820967184,0.073646,67916.0,67915.0,0.10026082]
[1729820967978,0.073646,67916.0,67915.0,0.19823059]
[1729820970488,0.3608,67922.0,67915.0,0.19823059]
[1729820970693,0.073641,67920.0,67919.0,0.07337745]
[1729820971402,0.073641,67920.0,67919.0,0.17145695]
[1729820972087,0.073641,67920.0,67919.0,0.09808461]
[1729820972287,0.073641,67920.0,67919.0,0.17146493]
[1729820972589,0.073641,67920.0,67919.0,0.07338032]
[1729820972895,0.05013041,67921.0,67917.0,0.07338032]
[1729820973088,0.12377341,67918.0,67917.0,0.07338032]
[1729820973388,0.12377341,67918.0,67917.0,0.1715149]
[1729820973892,0.12377341,67918.0,67917.0,0.09813458]
[1729820974781,0.05013041,67917.0,67916.0,0.07340001]
[1729820974987,0.073645,67917.0,67916.0,0.1715764]
[1729820975190,0.12377541,67917.0,67916.0,0.1715764]
[1729820975388,0.05013041,67917.0,67910.0,0.08812497]
[1729820975579,0.05013041,67917.0,67915.0,0.07340836]
[1729820975580,0.073646,67916.0,67915.0,0.07340836]
[1729820975785,0.434446,67916.0,67915.0,0.07340836]
[1729820976185,0.073648,67914.0,67913.0,0.05872669]
[1729820976381,0.12377941,67913.0,67912.0,0.05874068]
[1729820976587,0.12378041,67912.0,67911.0,0.05874068]
[1729820977107,0.12378041,67912.0,67905.0,0.0515]
[1729820977108,0.073653,67909.0,67908.0,0.07340836]
[1729820977288,0.073653,67909.0,67908.0,0.12353877]
[1729820977591,0.073653,67909.0,67908.0,0.17366918]
[1729820978292,0.073649,67913.0,67908.0,0.17366918]
[1729820978487,0.073649,67913.0,67910.0,0.10026082]
[1729820978795,0.073649,67913.0,67910.0,0.17367434]
[1729820978991,0.073649,67913.0,67910.0,0.17357434]
[1729820979991,0.3608,67916.0,67911.0,0.17191302]
[1729820980189,0.434446,67916.0,67915.0,0.10026082]
[1729820982201,0.434446,67916.0,67913.0,0.07341352]
[1729820982202,0.434446,67916.0,67913.0,0.10026082]
[1729820982497,0.073647,67915.0,67913.0,0.07341352]
[1729820982700,0.073647,67915.0,67914.0,0.10026082]
[1729820983202,0.073647,67915.0,67914.0,0.19862009]
[1729820983497,0.3608,67916.0,67914.0,0.28675871]
[1729820983796,0.3608,67916.0,67915.0,0.09835927]
[1729820984190,0.073645,67917.0,67915.0,0.21512219]
[1729820984397,0.073645,67917.0,67916.0,0.21513527]
[1729820986190,0.073645,67917.0,67916.0,0.09835927]
[1729820986394,0.073645,67917.0,67916.0,0.21518856]
[1729820990703,0.073645,67917.0,67916.0,0.21540509]
[1729820992697,0.073645,67917.0,67916.0,0.28905109]
[1729820992906,0.073645,67917.0,67916.0,0.52776504]
[1729820993102,0.05013041,67920.0,67916.0,0.52776504]
[1729820993103,0.073642,67920.0,67916.0,0.31812069]
[1729820993311,0.436439,67922.0,67920.0,0.073641]
[1729820993514,0.434439,67922.0,67921.0,0.21540509]
[1729820994206,0.073639,67922.0,67921.0,0.21540509]
[1729820995297,0.073639,67922.0,67921.0,0.21482273]
[1729820996715,0.073634,67927.0,67924.0,0.073636]
[1729820997009,0.073634,67927.0,67926.0,0.08829289]
[1729820997203,0.073634,67927.0,67926.0,0.09800478]
[1729820998103,0.073634,67927.0,67924.0,0.17389682]
[1729820998300,0.073634,67927.0,67925.0,0.04413606]
[1729820998604,0.073634,67927.0,67924.0,0.21803288]
[1729820999398,0.05013041,67928.0,67924.0,0.16790247]
[1729820999603,0.073635,67926.0,67924.0,0.11777206]
[1729820999802,0.073635,67926.0,67925.0,0.10026082]
[1729821002233,0.36284,67931.0,67926.0,0.073634]
[1729821002517,0.07363,67930.0,67929.0,0.10026082]
[1729821005112,0.00192,67937.0,67932.0,0.073628]
[1729821005319,0.09963041,67940.0,67936.0,0.10026082]
[1729821005611,0.12375341,67937.0,67936.0,0.10026082]
[1729821006211,0.12375341,67937.0,67936.0,0.09741281]
[1729821007112,0.073624,67936.0,67935.0,0.07346689]
[1729821007312,0.17388582,67935.0,67933.0,0.07346689]
[1729821007517,0.05013041,67933.0,67929.0,0.07347498]
[1729821007720,0.10026082,67929.0,67928.0,0.07347498]
[1729821008018,0.12376341,67928.0,67927.0,0.07347498]
[1729821008219,0.17286341,67928.0,67927.0,0.17121455]
[1729821008417,0.17286341,67928.0,67927.0,0.09773957]
[1729821008809,0.17286341,67928.0,67927.0,0.17123131]
[1729821009115,0.17286341,67928.0,67927.0,0.09773957]
[1729821009714,0.12376441,67927.0,67923.0,0.18853286]
[1729821009914,0.3608,67926.0,67925.0,0.073636]
[1729821010115,0.3608,67926.0,67925.0,0.2715778]
[1729821010815,0.05013041,67929.0,67925.0,0.2715778]
[1729821011016,0.05013041,67929.0,67927.0,0.088203]
[1729821011206,0.073633,67928.0,67925.0,0.17389682]
[1729821011412,0.073633,67928.0,67926.0,0.21390248]
[1729821011726,0.073633,67928.0,67927.0,0.0975772]
[1729821013224,0.073633,67928.0,67925.0,0.17389682]
[1729821015708,0.073633,67928.0,67922.0,0.0153595]
[1729821015709,0.05013041,67925.0,67923.0,0.04411098]
[1729821019413,0.05013041,67925.0,67924.0,0.04411098]
[1729821019812,0.073635,67926.0,67924.0,0.04413677]
[1729821020620,0.41285041,67928.0,67925.0,0.05013041]
[1729821020822,0.3608,67928.0,67927.0,0.05013041]
[1729821021014,0.3608,67928.0,67927.0,0.12376441]
[1729821021322,0.07363,67930.0,67927.0,0.33740922]
[1729821021524,0.07363,67930.0,67928.0,0.26377522]
[1729821021724,0.07363,67930.0,67929.0,0.21364481]
[1729821021925,0.12376041,67930.0,67929.0,0.21364481]
[1729821028225,0.12376241,67929.0,67928.0,0.073633]
[1729821028531,0.1591587,67929.0,67928.0,0.073633]
[1729821030331,0.0855267,67929.0,67925.0,0.01602413]
[1729821030530,0.41093041,67931.0,67922.0,0.073639]
[1729821030531,0.05013041,67925.0,67922.0,0.073639]
[1729821030828,0.073638,67923.0,67922.0,0.073639]
[1729821031929,0.073635,67926.0,67923.0,0.073637]
[1729821032130,0.073635,67926.0,67925.0,0.10026082]
[1729821032431,0.10887012,67926.0,67925.0,0.10026082]
[1729821035237,0.073635,67926.0,67925.0,0.31338015]
[1729821035438,0.073635,67926.0,67925.0,0.55067609]
[1729821035739,0.073635,67926.0,67925.0,0.31338015]
[1729821036234,0.073635,67926.0,67925.0,0.5506872]
[1729821036545,0.073635,67926.0,67925.0,0.4479716]
[1729821036931,0.073635,67926.0,67925.0,0.44805397]
[1729821037537,0.10026082,67933.0,67925.0,0.44805397]
[1729821037731,0.073631,67930.0,67929.0,0.1030931]
[1729821038037,0.073631,67930.0,67929.0,0.45059421]
[1729821038233,0.073631,67930.0,67929.0,0.20022]
[1729821038439,0.073631,67930.0,67929.0,0.23690441]
[1729821038640,0.073631,67930.0,67929.0,0.35215435]
[1729821038839,0.073631,67930.0,67929.0,0.10309383]
[1729821039245,0.12376141,67930.0,67929.0,0.10309383]
[1729821039747,0.12376141,67930.0,67928.0,0.20335465]
[1729821040142,0.12376141,67930.0,67929.0,0.2120008]
[1729821041446,0.12376141,67930.0,67929.0,0.2856328]
[1729821044250,0.12376141,67930.0,67929.0,0.2855116]
[1729821045141,0.17389182,67930.0,67929.0,0.2855116]
[1729821045347,0.17389182,67930.0,67929.0,0.2118796]
[1729821045544,0.58482223,67930.0,67929.0,0.2118796]
[1729821046149,0.67642223,67930.0,67929.0,0.18502791]
[1729821046341,0.67642223,67930.0,67929.0,0.09666209]
[1729821048948,0.526031,67930.0,67929.0,0.09666209]
[1729821049253,0.67642223,67930.0,67929.0,0.09666209]
[1729821049949,0.57616041,67930.0,67929.0,0.0968851]
[1729821050155,0.48043,67930.0,67929.0,0.18525092]
[1729821050452,0.43443,67930.0,67929.0,0.0968851]
[1729821050658,0.43443,67930.0,67929.0,0.33594457]
[1729821050850,0.43443,67930.0,67929.0,0.12376241]
[1729821051448,0.43443,67930.0,67929.0,0.073632]
[1729821051449,0.48456041,67930.0,67929.0,0.073632]
[1729821051857,0.53469082,67930.0,67929.0,0.073632]
[1729821052557,0.17389082,67930.0,67929.0,0.073632]
[1729821057867,0.17389082,67930.0,67929.0,0.28563862]
[1729821059462,0.17389082,67930.0,67929.0,0.28561405]
[1729821061067,0.17389082,67930.0,67929.0,0.21198205]
[1729821062564,0.07363,67930.0,67929.0,0.31224287]
[1729821063069,0.07363,67930.0,67929.0,0.31227238]
[1729821063772,0.07363,67930.0,67929.0,0.38590438]
[1729821065269,0.07363,67930.0,67929.0,0.33577397]
[1729821065459,0.07363,67930.0,67929.0,0.21201156]
[1729821065867,0.07363,67930.0,67929.0,0.04417008]
[1729821068876,0.17389082,67930.0,67929.0,0.04417008]
[1729821069076,0.073632,67929.0,67928.0,0.04417008]
[1729821069372,0.12376341,67928.0,67927.0,0.04417008]
[1729821070074,0.073635,67926.0,67925.0,0.04417008]
[1729821070261,0.073635,67926.0,67923.0,0.0482]
[1729821070262,0.05013041,67925.0,67924.0,0.04417008]
[1729821070468,0.12376641,67925.0,67924.0,0.04417008]
[1729821070666,0.12376641,67925.0,67924.0,0.04417303]
[1729821070870,0.073637,67924.0,67923.0,0.04417303]
[1729821071068,0.073639,67922.0,67921.0,0.05889344]
[1729821071369,0.07364,67921.0,67920.0,0.05889344]
[1729821071570,0.12377041,67921.0,67920.0,0.05889344]
[1729821072773,0.00591413,67920.0,67918.0,0.37664996]
[1729821072966,0.00591413,67920.0,67919.0,0.34595087]
[1729821073469,0.00591413,67920.0,67919.0,0.44909337]
[1729821076566,0.00591413,67920.0,67919.0,0.34603699]
[1729821077165,0.00591413,67920.0,67919.0,0.34480239]
[1729821077578,0.00591413,67920.0,67919.0,0.44784498]
[1729821078088,0.07955513,67920.0,67919.0,0.09642435]
[1729821080369,0.07955513,67920.0,67919.0,0.07355579]
[1729821080682,0.09510214,67920.0,67919.0,0.09673385]
[1729821080882,0.09510214,67920.0,67919.0,0.07355192]
[1729821080883,0.02146114,67920.0,67919.0,0.07355192]
[1729821081076,0.02146114,67920.0,67909.0,0.05013041]
[1729821081077,0.14523255,67920.0,67918.0,0.07355192]
[1729821081271,0.073647,67915.0,67913.0,0.073648]
[1729821081475,0.073647,67915.0,67914.0,0.09663258]
[1729821081874,0.073647,67915.0,67914.0,0.09670514]
[1729821082081,0.12377741,67915.0,67914.0,0.09670514]
[1729821082477,0.12377741,67915.0,67914.0,0.17023009]
[1729821082680,0.12377841,67914.0,67913.0,0.07352744]
[1729821082878,0.12377841,67914.0,67911.0,0.07352744]
[1729821082879,0.05013041,67913.0,67911.0,0.07352744]
[1729821083182,0.05013041,67913.0,67905.0,0.08832843]
[1729821083183,0.12378141,67911.0,67910.0,0.07352744]
[1729821083378,0.05013041,67910.0,67907.0,0.07352744]
[1729821083580,0.41093041,67911.0,67908.0,0.07352744]
[1729821083581,0.073653,67909.0,67908.0,0.07352744]
[1729821083776,0.12378341,67909.0,67908.0,0.17048688]
[1729821083981,0.00196,67917.0,67908.0,0.14708985]
[1729821084181,0.05013041,67916.0,67915.0,0.14714073]
[1729821084386,0.05013041,67916.0,67915.0,0.17060644]
[1729821084583,0.3608,67918.0,67917.0,0.073645]
[1729821084881,0.3608,67918.0,67917.0,0.27086526]
[1729821086377,0.3608,67918.0,67917.0,0.27040117]
[1729821087379,0.48457341,67918.0,67917.0,0.17014035]
[1729821087886,0.05013041,67917.0,67915.0,0.0429]
[1729821088075,0.12377541,67917.0,67915.0,0.0429]
[1729821088483,0.05013041,67917.0,67913.0,0.04408747]
[1729821088786,0.05013041,67917.0,67909.0,0.2217353]
[1729821088787,0.05013041,67914.0,67912.0,0.04408747]
[1729821089084,0.05013041,67914.0,67912.0,0.11773747]
[1729821089284,0.05013041,67914.0,67913.0,0.073649]
[1729821089491,0.12377841,67914.0,67913.0,0.073649]
[1729821090390,0.073649,67913.0,67912.0,0.04408747]
[1729821090689,0.073649,67913.0,67912.0,0.11773747]
[1729821092980,0.073645,67917.0,67915.0,0.073647]
[1729821093186,0.073645,67917.0,67916.0,0.10026082]
[1729821093387,0.41293041,67919.0,67917.0,0.073645]
[1729821093596,0.3608,67919.0,67917.0,0.073645]
[1729821093893,0.3608,67919.0,67918.0,0.118143]
[1729821095989,0.3608,67919.0,67918.0,0.21465768]
[1729821097284,0.073642,67920.0,67918.0,0.32966877]
[1729821097487,0.073642,67920.0,67919.0,0.21152577]
[1729821098986,0.434442,67920.0,67919.0,0.18477393]
[1729821099184,0.434442,67920.0,67919.0,0.09651468]
[1729821100487,0.17390282,67919.0,67918.0,0.08825925]
[1729821100792,0.17390282,67919.0,67918.0,0.18476927]
[1729821100994,0.12377241,67919.0,67918.0,0.18476927]
[1729821102087,0.12377241,67919.0,67918.0,0.09651002]
[1729821102794,0.12377241,67919.0,67918.0,0.21144248]
[1729821102991,0.073645,67917.0,67916.0,0.073645]
[1729821106287,0.12377541,67917.0,67916.0,0.1177896]
[1729821106895,0.12377541,67917.0,67916.0,0.073645]
[1729821107083,0.12377541,67917.0,67916.0,0.1177896]
[1729821107686,0.12377541,67917.0,67916.0,0.073645]
[1729821108090,0.12377541,67917.0,67916.0,0.11780433]
[1729821109590,0.12377541,67917.0,67916.0,0.073645]
[1729821109791,0.073647,67915.0,67914.0,0.05885947]
[1729821110101,0.073647,67915.0,67913.0,0.13250747]
[1729821110295,0.073647,67915.0,67914.0,0.05885947]
[1729821110703,0.073647,67915.0,67914.0,0.13250747]
[1729821111007,0.073647,67915.0,67914.0,0.2849359]
[1729821113705,0.073647,67915.0,67914.0,0.2112879]
[1729821113895,0.05013041,67917.0,67914.0,0.2112879]
[1729821114097,0.05013041,67917.0,67915.0,0.2112879]
[1729821114296,0.12377541,67917.0,67916.0,0.2112879]
[1729821115096,0.17077541,67917.0,67916.0,0.2112879]
[1729821115393,0.17077541,67917.0,67916.0,0.09639215]
[1729821115596,0.22090582,67917.0,67916.0,0.09639215]
[1729821116404,0.17077541,67917.0,67916.0,0.09639215]
[1729821116613,0.22090582,67917.0,67916.0,0.09639215]
[1729821116800,0.17077541,67917.0,67916.0,0.21141961]
[1729821117303,0.17077541,67917.0,67916.0,0.09639215]
[1729821118004,0.05013041,67917.0,67916.0,0.073646]
[1729821118594,0.05013041,67917.0,67916.0,0.13256114]
[1729821118805,0.3608,67920.0,67916.0,0.13256114]
[1729821118806,0.3608,67920.0,67917.0,0.073644]
[1729821119005,0.3608,67920.0,67919.0,0.1679573]
[1729821119404,0.3608,67920.0,67919.0,0.12377241]
[1729821119703,0.073632,67929.0,67919.0,0.12377241]
[1729821119704,0.073632,67929.0,67925.0,0.073636]
[1729821119905,0.41093041,67928.0,67926.0,0.05013041]
[1729821120211,0.05013041,67927.0,67925.0,0.11781829]
[1729821120504,0.05013041,67927.0,67926.0,0.11781729]
[1729821120809,0.12376441,67927.0,67926.0,0.11781729]
[1729821121905,0.12376441,67927.0,67926.0,0.073635]
[1729821124105,0.05013041,67930.0,67926.0,0.09428851]
[1729821124312,0.05013041,67930.0,67928.0,0.1177911]
[1729821124503,0.05013041,67930.0,67928.0,0.073633]
[1729821124703,0.12376141,67930.0,67928.0,0.073633]
[1729821125010,0.073632,67929.0,67928.0,0.073633]
[1729821125213,0.073632,67929.0,67928.0,0.1177911]
[1729821125401,0.073632,67929.0,67928.0,0.11777555]
[1729821125605,0.073632,67929.0,67928.0,0.073633]
[1729821126005,0.073632,67929.0,67928.0,0.28296082]
[1729821126905,0.073632,67929.0,67928.0,0.16913094]
[1729821127110,0.068332,67929.0,67928.0,0.16913094]
[1729821127310,0.068332,67929.0,67928.0,0.16922769]
[1729821130409,0.068332,67929.0,67928.0,0.25744776]
[1729821130813,0.068332,67929.0,67928.0,0.16922769]
[1729821140424,0.068332,67929.0,67928.0,0.25744115]
[1729821140815,0.068332,67929.0,67928.0,0.18380815]
[1729821141014,0.46608531,67929.0,67925.0,0.0433]
[1729821141214,0.073637,67924.0,67923.0,0.434438]
[1729821141418,0.11059031,67924.0,67923.0,0.434438]
[1729821141626,0.11042703,67924.0,67923.0,0.3608]
[1729821141921,0.11042703,67924.0,67917.0,0.0944]
[1729821141922,0.073643,67918.0,67917.0,0.0944]
[1729821142129,0.073645,67917.0,67916.0,0.12377541]
[1729821142314,0.11032175,67917.0,67916.0,0.17390582]
[1729821142518,0.03667675,67917.0,67916.0,0.17390582]
[1729821142723,0.0365528,67917.0,67916.0,0.17390582]
[1729821143125,0.05013041,67918.0,67916.0,0.11610143]
[1729821143326,0.05013041,67918.0,67917.0,0.073645]
[1729821143723,0.08678589,67918.0,67917.0,0.073645]
[1729821146330,0.03665548,67918.0,67917.0,0.073645]
[1729821147934,0.03665548,67918.0,67917.0,0.17390582]
[1729821148227,0.05013041,67923.0,67922.0,0.073639]
[1729821148427,0.05013041,67923.0,67922.0,0.28383285]
[1729821149729,0.3608,67939.0,67922.0,0.28383285]
[1729821149730,0.05013041,67928.0,67926.0,0.073634]
[1729821149929,0.05013041,67928.0,67927.0,0.21019385]
[1729821151127,0.05013041,67928.0,67927.0,0.28382785]
[1729821151731,0.12376341,67928.0,67927.0,0.28382785]
[1729821152537,0.12376341,67928.0,67927.0,0.16952703]
[1729821153427,0.12376341,67928.0,67927.0,0.28365206]
[1729821153629,0.12376341,67928.0,67927.0,0.16952703]
[1729821153825,0.12376341,67928.0,67927.0,0.28362546]
[1729821154928,0.12376341,67928.0,67927.0,0.28359466]
[1729821155333,0.12376341,67928.0,67927.0,0.16952703]
[1729821155731,0.12376341,67928.0,67927.0,0.28361106]
[1729821155935,0.05013041,67928.0,67927.0,0.28361106]
[1729821156242,0.05013041,67928.0,67927.0,0.073634]
[1729821158244,0.05013041,67930.0,67929.0,0.073632]
[1729821158436,0.05013041,67935.0,67929.0,0.10026082]
[1729821158641,0.12375541,67935.0,67934.0,0.073626]
[1729821166361,0.073625,67935.0,67934.0,0.073626]
[1729821166656,0.12375541,67935.0,67934.0,0.073626]
[1729821167563,0.073625,67935.0,67934.0,0.25742212]
[1729821167763,0.12375541,67935.0,67934.0,0.25742212]
[1729821168361,0.12375541,67935.0,67934.0,0.1691303]
[1729821169966,0.12375541,67935.0,67934.0,0.25742212]
[1729821170260,0.12375541,67935.0,67934.0,0.28298375]
[1729821170762,0.12375541,67935.0,67934.0,0.25743211]
[1729821172066,0.12375541,67935.0,67934.0,0.073626]
[1729821172067,0.20406112,67935.0,67934.0,0.073626]
[1729821172562,0.13043612,67935.0,67934.0,0.073626]
[1729821174964,0.20406112,67935.0,67934.0,0.073626]
[1729821175668,0.25316342,67935.0,67934.0,0.073626]
[1729821175964,0.2532597,67935.0,67934.0,0.073626]
[1729821176157,0.20406112,67935.0,67934.0,0.073626]
[1729821177455,0.05013041,67934.0,67930.0,0.10026082]
[1729821177655,0.05013041,67931.0,67930.0,0.07363]
[1729821177859,0.13043612,67931.0,67930.0,0.07363]
[1729821178958,0.05013041,67931.0,67930.0,0.18745585]
[1729821179266,0.05013041,67931.0,67930.0,0.2829504]
[1729821182364,0.40502,67936.0,67935.0,0.073625]
[1729821182668,0.50336082,67936.0,67935.0,0.16911955]
[1729821182857,0.53468482,67936.0,67935.0,0.16911955]
[1729821183669,0.073619,67941.0,67940.0,0.073617]
[1729821183864,0.073619,67941.0,67940.0,0.26937237]
[1729821184075,0.073619,67941.0,67940.0,0.38299047]
[1729821184571,0.42859139,67944.0,67940.0,0.30927877]
[1729821184763,0.50028639,67944.0,67943.0,0.16193831]
[1729821184963,0.50028639,67944.0,67943.0,0.25743286]
[1729821185365,0.50028639,67944.0,67943.0,0.18381686]
[1729821185666,0.50028639,67944.0,67943.0,0.09549455]
[1729821187076,0.073617,67942.0,67941.0,0.073618]
[1729821187274,0.25484791,67942.0,67941.0,0.073618]
[1729821187574,0.30497832,67942.0,67941.0,0.073618]
[1729821187774,0.30497832,67942.0,67941.0,0.17387882]
[1729821188389,0.30492997,67942.0,67941.0,0.17387882]
[1729821188674,0.30492997,67942.0,67941.0,0.073618]
[1729821188972,0.30492997,67942.0,67941.0,0.17387882]
[1729821189878,0.30492997,67942.0,67941.0,0.073618]
[1729821190373,0.25518658,67942.0,67941.0,0.073618]
[1729821191077,0.30514898,67942.0,67941.0,0.073618]
[1729821191272,0.23153198,67942.0,67941.0,0.073618]
[1729821192780,0.30514898,67942.0,67941.0,0.073618]
[1729821193181,0.30520644,67942.0,67941.0,0.073618]
[1729821194075,0.17387782,67942.0,67941.0,0.25703782]
[1729821194383,0.17387782,67942.0,67941.0,0.16871551]
[1729821194676,0.17387782,67942.0,67941.0,0.256988]
[1729821195176,0.17387782,67942.0,67941.0,0.16871551]
[1729821195177,0.10026082,67942.0,67941.0,0.16871551]
[1729821195567,0.10026082,67942.0,67941.0,0.25698229]
[1729821195770,0.436456,67944.0,67941.0,0.2334947]
[1729821195977,0.434416,67944.0,67943.0,0.12374641]
[1729821196178,0.434416,67944.0,67943.0,0.21884392]
[1729821196373,0.53467682,67944.0,67943.0,0.16871351]
[1729821198685,0.53467682,67944.0,67943.0,0.09509751]
[1729821200084,0.53467682,67944.0,67943.0,0.18336429]
[1729821200288,0.53467682,67944.0,67943.0,0.09509751]
[1729821206689,0.53467682,67944.0,67943.0,0.18336429]
[1729821207692,0.53467682,67944.0,67943.0,0.18321149]
[1729821208479,0.53467682,67944.0,67943.0,0.09494471]
[1729821209191,0.66672109,67944.0,67942.0,0.073617]
[1729821209492,0.1320638,67943.0,67942.0,0.073617]
[1729821212394,0.03790954,67943.0,67942.0,0.073617]
[1729821212590,0.13207353,67943.0,67942.0,0.073617]
[1729821212992,0.08194245,67943.0,67942.0,0.073617]
[1729821213192,0.13232693,67943.0,67942.0,0.073617]
[1729821215301,0.08194245,67943.0,67942.0,0.073617]
[1729821215492,0.13202156,67943.0,67942.0,0.073617]
[1729821217097,0.10026082,67944.0,67942.0,0.28211743]
[1729821217393,0.10026082,67944.0,67943.0,0.09512047]
[1729821217897,0.10026082,67944.0,67943.0,0.18349561]
[1729821219293,0.10026082,67944.0,67943.0,0.09512047]